[Event "*** Titled Tuesday Blitz"]
[Site "Chess.com"]
[Date "2020.05.19"]
[Round "2"]
[White "Moon_stone123"]
[Black "RianKapriaga"]
[Result "1-0"]
[WhiteElo "2518"]
[BlackElo "2195"]
[TimeControl "180+1"]
[EndTime "12:17:44 PDT"]
[Termination "Moon_stone123 won on time"]

1. Nf3 {[%clk 0:03:00.9]} 1... Nf6 {[%clk 0:02:57.6]} 2. g3 {[%clk 0:03:01.8]}
2... e6 {[%clk 0:02:55.8]} 3. Bg2 {[%clk 0:03:01.8]} 3... b6 {[%clk 0:02:47.8]}
4. O-O {[%clk 0:03:02.7]} 4... Bb7 {[%clk 0:02:46.9]} 5. c4 {[%clk 0:02:59.6]}
5... c5 {[%clk 0:02:45.2]} 6. Nc3 {[%clk 0:02:59.3]} 6... Nc6 {[%clk 0:02:43]}
7. b3 {[%clk 0:02:56.4]} 7... Be7 {[%clk 0:02:41.2]} 8. Bb2 {[%clk 0:02:56.2]}
8... O-O {[%clk 0:02:40]} 9. d4 {[%clk 0:02:48.3]} 9... cxd4 {[%clk 0:02:37.8]}
10. Nxd4 {[%clk 0:02:46]} 10... Qc8 {[%clk 0:02:28.3]} 11. Ndb5 {[%clk
0:02:41.4]} 11... Ne8 {[%clk 0:02:21.1]} 12. Ne4 {[%clk 0:02:35.9]} 12... a6
{[%clk 0:01:28.3]} 13. Nbd6 {[%clk 0:02:33.6]} 13... Nxd6 {[%clk 0:01:26.9]} 14.
Nxd6 {[%clk 0:02:34.5]} 14... Bxd6 {[%clk 0:01:25.6]} 15. Qxd6 {[%clk
0:02:32.4]} 15... Qb8 {[%clk 0:01:16.9]} 16. Rfd1 {[%clk 0:02:22.8]} 16... Ra7
{[%clk 0:00:49.3]} 17. Qxb8 {[%clk 0:01:54.2]} 17... Nxb8 {[%clk 0:00:45.7]} 18.
Rd6 {[%clk 0:01:53.5]} 18... Bxg2 {[%clk 0:00:43.8]} 19. Kxg2 {[%clk 0:01:54]}
19... b5 {[%clk 0:00:40.9]} 20. cxb5 {[%clk 0:01:36.4]} 20... axb5 {[%clk
0:00:39.9]} 21. Rb6 {[%clk 0:01:37]} 21... d5 {[%clk 0:00:36]} 22. Rxb5 {[%clk
0:01:35.1]} 22... Nd7 {[%clk 0:00:33.3]} 23. a4 {[%clk 0:01:33.6]} 23... Rb8
{[%clk 0:00:33.5]} 24. Rxb8+ {[%clk 0:01:32.4]} 24... Nxb8 {[%clk 0:00:33.1]}
25. Bd4 {[%clk 0:01:24.2]} 25... Rb7 {[%clk 0:00:27.4]} 26. Rb1 {[%clk 0:01:21]}
26... Nc6 {[%clk 0:00:22.5]} 27. Bc5 {[%clk 0:01:17.8]} 27... Nb4 {[%clk
0:00:15.4]} 28. Rc1 {[%clk 0:01:16.5]} 28... f6 {[%clk 0:00:14.2]} 29. a5 {[%clk
0:01:13.7]} 29... Na6 {[%clk 0:00:13.3]} 30. Bb6 {[%clk 0:01:10]} 30... Kf7
{[%clk 0:00:11.7]} 31. Rb1 {[%clk 0:01:05.9]} 31... Nb4 {[%clk 0:00:09.6]} 32.
Ra1 {[%clk 0:01:05.3]} 32... Na6 {[%clk 0:00:07.4]} 33. Ra4 {[%clk 0:01:05.5]}
33... e5 {[%clk 0:00:05.9]} 34. b4 {[%clk 0:01:05.4]} 34... Nb8 {[%clk
0:00:03.9]} 35. b5 {[%clk 0:01:04.6]} 35... Nd7 {[%clk 0:00:03.7]} 36. a6 {[%clk
0:01:02]} 36... Rxb6 {[%clk 0:00:02.4]} 37. a7 {[%clk 0:01:02.1]} 1-0

[Event "*** Titled Tuesday Blitz"]
[Site "Chess.com"]
[Date "2020.05.19"]
[Round "2"]
[White "CuattroPrincesses"]
[Black "amiralfio"]
[Result "0-1"]
[WhiteElo "2262"]
[BlackElo "2464"]
[TimeControl "180+1"]
[EndTime "12:17:44 PDT"]
[Termination "amiralfio won by resignation"]

1. e4 {[%clk 0:03:00.9]} 1... c6 {[%clk 0:02:57.1]} 2. c4 {[%clk 0:03:00.2]}
2... g6 {[%clk 0:02:56.1]} 3. d4 {[%clk 0:02:59.5]} 3... Bg7 {[%clk 0:02:56.5]}
4. Nc3 {[%clk 0:02:59.4]} 4... d6 {[%clk 0:02:57]} 5. Be2 {[%clk 0:02:55.3]}
5... Nf6 {[%clk 0:02:56.9]} 6. h3 {[%clk 0:02:53.9]} 6... O-O {[%clk 0:02:56.3]}
7. Nf3 {[%clk 0:02:53.8]} 7... a6 {[%clk 0:02:54.7]} 8. Be3 {[%clk 0:02:42]}
8... b5 {[%clk 0:02:51.7]} 9. cxb5 {[%clk 0:02:38]} 9... axb5 {[%clk 0:02:52.6]}
10. b4 {[%clk 0:02:36.3]} 10... Nbd7 {[%clk 0:02:47.4]} 11. O-O {[%clk
0:02:16.9]} 11... Nb6 {[%clk 0:02:46.6]} 12. d5 {[%clk 0:02:10]} 12... cxd5
{[%clk 0:02:31.5]} 13. exd5 {[%clk 0:02:10.9]} 13... Bb7 {[%clk 0:02:26.2]} 14.
Nxb5 {[%clk 0:01:05.8]} 14... Nfxd5 {[%clk 0:02:11]} 15. Bd4 {[%clk 0:00:56.7]}
15... e5 {[%clk 0:01:48]} 16. Bb2 {[%clk 0:00:54.9]} 16... Nxb4 {[%clk
0:01:22.7]} 17. Qxd6 {[%clk 0:00:48.3]} 17... Nxa2 {[%clk 0:00:41.3]} 18. Bxe5
{[%clk 0:00:25.6]} 18... Qxd6 {[%clk 0:00:23]} 19. Nxd6 {[%clk 0:00:19.3]} 19...
Bxf3 {[%clk 0:00:23.3]} 20. Bxg7 {[%clk 0:00:17.7]} 20... Bxe2 {[%clk
0:00:23.8]} 21. Bxf8 {[%clk 0:00:15.4]} 21... Bxf1 {[%clk 0:00:24.1]} 22. Kxf1
{[%clk 0:00:14]} 22... Kxf8 {[%clk 0:00:23.4]} 0-1

[Event "*** Titled Tuesday Blitz"]
[Site "Chess.com"]
[Date "2020.05.19"]
[Round "2"]
[White "albano87"]
[Black "GMartin_Petrov"]
[Result "1-0"]
[WhiteElo "2328"]
[BlackElo "2606"]
[TimeControl "180+1"]
[EndTime "12:17:45 PDT"]
[Termination "albano87 won by resignation"]

1. e4 {[%clk 0:03:00.9]} 1... c5 {[%clk 0:02:58.8]} 2. Nf3 {[%clk 0:02:59.8]}
2... d6 {[%clk 0:02:58.8]} 3. d4 {[%clk 0:02:58.5]} 3... cxd4 {[%clk 0:02:59.7]}
4. Qxd4 {[%clk 0:02:58.8]} 4... Nf6 {[%clk 0:02:56.7]} 5. Nc3 {[%clk 0:02:51.2]}
5... Nc6 {[%clk 0:02:56.2]} 6. Bb5 {[%clk 0:02:50.6]} 6... Bd7 {[%clk
0:02:56.8]} 7. Bxc6 {[%clk 0:02:50.2]} 7... Bxc6 {[%clk 0:02:57.7]} 8. Bg5
{[%clk 0:02:49.6]} 8... e6 {[%clk 0:02:58.2]} 9. Qd3 {[%clk 0:02:48.9]} 9... Be7
{[%clk 0:02:57.2]} 10. Nd4 {[%clk 0:02:45.8]} 10... O-O {[%clk 0:02:45.3]} 11.
O-O-O {[%clk 0:02:42.3]} 11... Rc8 {[%clk 0:02:36.3]} 12. f4 {[%clk 0:02:31.9]}
12... Qa5 {[%clk 0:02:16.6]} 13. Kb1 {[%clk 0:02:23.4]} 13... Rfe8 {[%clk
0:02:09.7]} 14. f5 {[%clk 0:02:16.6]} 14... Nxe4 {[%clk 0:01:48.2]} 15. Nxc6
{[%clk 0:02:07.5]} 15... Nxc3+ {[%clk 0:01:46.2]} 16. Qxc3 {[%clk 0:02:04]}
16... Qxc3 {[%clk 0:01:12.3]} 17. Nxe7+ {[%clk 0:02:01.8]} 17... Rxe7 {[%clk
0:01:12.4]} 18. bxc3 {[%clk 0:01:58.5]} 18... f6 {[%clk 0:01:13.3]} 19. Bf4
{[%clk 0:01:55.5]} 19... exf5 {[%clk 0:01:08.6]} 20. Rxd6 {[%clk 0:01:50.4]}
20... Rxc3 {[%clk 0:01:07.5]} 21. Rhd1 {[%clk 0:01:43.4]} 21... g5 {[%clk
0:01:03.5]} 22. Bc1 {[%clk 0:01:43.5]} 22... Kf7 {[%clk 0:00:55.5]} 23. Bb2
{[%clk 0:01:40.2]} 23... Rc6 {[%clk 0:00:55.2]} 24. Bxf6 {[%clk 0:01:30.7]}
24... Re2 {[%clk 0:00:25.9]} 25. Bxg5 {[%clk 0:01:30]} 25... Rcxc2 {[%clk
0:00:24.5]} 26. Rf6+ {[%clk 0:01:19.1]} 26... Kg7 {[%clk 0:00:21.4]} 27. Rd7+
{[%clk 0:01:13.6]} 27... Kg8 {[%clk 0:00:21.4]} 28. Bh6 {[%clk 0:01:02.2]} 28...
Rc8 {[%clk 0:00:21]} 29. Rg7+ {[%clk 0:00:55.7]} 29... Kh8 {[%clk 0:00:20.3]}
30. Rff7 {[%clk 0:00:56.6]} 30... Re1+ {[%clk 0:00:11]} 31. Kb2 {[%clk
0:00:56.3]} 31... Re2+ {[%clk 0:00:11.9]} 32. Kb3 {[%clk 0:00:52.5]} 32... Re6
{[%clk 0:00:09.9]} 33. Rxh7+ {[%clk 0:00:46.3]} 33... Kg8 {[%clk 0:00:10.8]} 34.
Rfg7+ {[%clk 0:00:47]} 1-0

[Event "*** Titled Tuesday Blitz"]
[Site "Chess.com"]
[Date "2020.05.19"]
[Round "2"]
[White "Love_craft"]
[Black "PenguinPacks"]
[Result "1-0"]
[WhiteElo "2585"]
[BlackElo "2301"]
[TimeControl "180+1"]
[EndTime "12:17:45 PDT"]
[Termination "Love_craft won by resignation"]

1. Nf3 {[%clk 0:03:00.9]} 1... d5 {[%clk 0:03:00.1]} 2. g3 {[%clk 0:03:01.2]}
2... Nf6 {[%clk 0:03:00.5]} 3. Bg2 {[%clk 0:03:01.6]} 3... Nc6 {[%clk 0:03:00]}
4. d4 {[%clk 0:03:00.4]} 4... Bf5 {[%clk 0:02:58.2]} 5. O-O {[%clk 0:02:59.9]}
5... Qd7 {[%clk 0:02:58.6]} 6. a3 {[%clk 0:02:55.6]} 6... Bh3 {[%clk 0:02:57.7]}
7. Ne5 {[%clk 0:02:44]} 7... Nxe5 {[%clk 0:02:53]} 8. dxe5 {[%clk 0:02:44.9]}
8... Bxg2 {[%clk 0:02:53.1]} 9. Kxg2 {[%clk 0:02:42.8]} 9... Ng4 {[%clk
0:02:41.6]} 10. f4 {[%clk 0:02:25.4]} 10... d4 {[%clk 0:02:29.8]} 11. c3 {[%clk
0:02:16.6]} 11... c5 {[%clk 0:02:13.1]} 12. cxd4 {[%clk 0:02:13]} 12... cxd4
{[%clk 0:02:14]} 13. h3 {[%clk 0:02:12.2]} 13... Nh6 {[%clk 0:01:46.8]} 14. e3
{[%clk 0:02:10.6]} 14... Qc6+ {[%clk 0:01:29.1]} 15. Qf3 {[%clk 0:02:02.7]}
15... Qc2+ {[%clk 0:01:15.5]} 16. Qf2 {[%clk 0:01:54.9]} 16... Qe4+ {[%clk
0:01:05.1]} 17. Kh2 {[%clk 0:01:18.2]} 17... Rc8 {[%clk 0:00:58.8]} 18. exd4
{[%clk 0:00:48]} 18... Rc2 {[%clk 0:00:57.5]} 19. Nd2 {[%clk 0:00:48.3]} 19...
Qd3 {[%clk 0:00:52.5]} 20. g4 {[%clk 0:00:43.2]} 20... e6 {[%clk 0:00:36.7]} 21.
Re1 {[%clk 0:00:40.5]} 21... Be7 {[%clk 0:00:22.7]} 22. Rg1 {[%clk 0:00:26.3]}
22... O-O {[%clk 0:00:18.9]} 23. Rg3 {[%clk 0:00:26.5]} 23... Qe4 {[%clk
0:00:16.7]} 24. Nxe4 {[%clk 0:00:25.5]} 24... Re2 {[%clk 0:00:15.8]} 25. Qxe2
{[%clk 0:00:25.4]} 1-0

[Event "*** Titled Tuesday Blitz"]
[Site "Chess.com"]
[Date "2020.05.19"]
[Round "2"]
[White "ChristopherYoo"]
[Black "hermionegrangermagic"]
[Result "1-0"]
[WhiteElo "2883"]
[BlackElo "2549"]
[TimeControl "180+1"]
[EndTime "12:17:48 PDT"]
[Termination "ChristopherYoo won by resignation"]

1. e4 {[%clk 0:03:00.9]} 1... c5 {[%clk 0:02:53.2]} 2. Nf3 {[%clk 0:02:57.3]}
2... Nc6 {[%clk 0:02:51]} 3. Nc3 {[%clk 0:02:54.7]} 3... g6 {[%clk 0:02:50.1]}
4. Bb5 {[%clk 0:02:54.1]} 4... Bg7 {[%clk 0:02:49.1]} 5. O-O {[%clk 0:02:54]}
5... Nd4 {[%clk 0:02:47.4]} 6. Nxd4 {[%clk 0:02:53.5]} 6... cxd4 {[%clk
0:02:47.9]} 7. Ne2 {[%clk 0:02:53.5]} 7... a6 {[%clk 0:02:41.1]} 8. Ba4 {[%clk
0:02:53]} 8... b5 {[%clk 0:02:32.4]} 9. Bb3 {[%clk 0:02:52]} 9... e6 {[%clk
0:02:32.5]} 10. d3 {[%clk 0:02:48.3]} 10... Ne7 {[%clk 0:02:27]} 11. Bg5 {[%clk
0:02:45.7]} 11... O-O {[%clk 0:02:24.5]} 12. f4 {[%clk 0:02:43.2]} 12... d6
{[%clk 0:01:54.8]} 13. Qe1 {[%clk 0:02:39]} 13... Qc7 {[%clk 0:01:44.4]} 14. Qh4
{[%clk 0:02:32.2]} 14... Nc6 {[%clk 0:01:32.9]} 15. Bf6 {[%clk 0:02:20]} 15...
a5 {[%clk 0:01:12]} 16. a4 {[%clk 0:02:14.4]} 16... bxa4 {[%clk 0:01:09.5]} 17.
Bxa4 {[%clk 0:02:11.6]} 17... Bd7 {[%clk 0:00:54.8]} 18. Rf3 {[%clk 0:01:34.9]}
18... Nb4 {[%clk 0:00:20.8]} 19. Bxd7 {[%clk 0:01:19.1]} 19... Qxd7 {[%clk
0:00:21.7]} 20. Rh3 {[%clk 0:01:15.5]} 20... h5 {[%clk 0:00:20]} 21. Nxd4 {[%clk
0:00:57.4]} 21... e5 {[%clk 0:00:19.9]} 22. Bxg7 {[%clk 0:00:48.4]} 22... exd4
{[%clk 0:00:09.7]} 23. Bf6 {[%clk 0:00:28.4]} 23... Qe6 {[%clk 0:00:05.5]} 24.
f5 {[%clk 0:00:26.2]} 24... Qe8 {[%clk 0:00:02.7]} 25. Qxh5 {[%clk 0:00:23.7]}
25... gxh5 {[%clk 0:00:02.1]} 26. Rxh5 {[%clk 0:00:24.6]} 1-0

[Event "*** Titled Tuesday Blitz"]
[Site "Chess.com"]
[Date "2020.05.19"]
[Round "2"]
[White "ALeks_Ivlev"]
[Black "WanderingPuppet"]
[Result "1-0"]
[WhiteElo "2591"]
[BlackElo "2307"]
[TimeControl "180+1"]
[EndTime "12:17:48 PDT"]
[Termination "ALeks_Ivlev won by resignation"]

1. d4 {[%clk 0:03:00.9]} 1... Nf6 {[%clk 0:02:59.6]} 2. c4 {[%clk 0:03:01.3]}
2... g6 {[%clk 0:03:00.2]} 3. Nc3 {[%clk 0:03:01.5]} 3... Bg7 {[%clk 0:03:00.9]}
4. e3 {[%clk 0:03:01.6]} 4... O-O {[%clk 0:03:01.5]} 5. Nf3 {[%clk 0:03:01.7]}
5... d6 {[%clk 0:03:02.1]} 6. Be2 {[%clk 0:03:02.1]} 6... Nbd7 {[%clk
0:03:02.8]} 7. b3 {[%clk 0:03:01.1]} 7... e5 {[%clk 0:03:03.4]} 8. Bb2 {[%clk
0:03:01]} 8... Qe7 {[%clk 0:03:02.9]} 9. Qc2 {[%clk 0:03:00.7]} 9... c6 {[%clk
0:03:02.4]} 10. O-O-O {[%clk 0:02:57.6]} 10... a6 {[%clk 0:03:02.7]} 11. dxe5
{[%clk 0:02:44.1]} 11... dxe5 {[%clk 0:03:02.1]} 12. Nd2 {[%clk 0:02:44]} 12...
b5 {[%clk 0:03:02.2]} 13. Nde4 {[%clk 0:02:43.7]} 13... b4 {[%clk 0:02:59.6]}
14. Nxf6+ {[%clk 0:02:42.5]} 14... Nxf6 {[%clk 0:02:59]} 15. Ne4 {[%clk
0:02:42.9]} 15... Bf5 {[%clk 0:02:58.3]} 16. Nxf6+ {[%clk 0:02:41.4]} 16... Bxf6
{[%clk 0:02:45.5]} 17. e4 {[%clk 0:02:40.8]} 17... Be6 {[%clk 0:02:40.7]} 18. c5
{[%clk 0:02:26.4]} 18... a5 {[%clk 0:02:38.5]} 19. Rd6 {[%clk 0:02:25.6]} 19...
a4 {[%clk 0:02:33.1]} 20. Bc4 {[%clk 0:02:25.2]} 20... axb3 {[%clk 0:02:28.6]}
21. axb3 {[%clk 0:02:24.3]} 21... Ra5 {[%clk 0:01:57.5]} 22. Bxe6 {[%clk
0:02:22.2]} 22... fxe6 {[%clk 0:01:58.4]} 23. Qc4 {[%clk 0:02:21.2]} 23... Bg5+
{[%clk 0:01:44.6]} 24. Kc2 {[%clk 0:02:20.2]} 24... Rxf2+ {[%clk 0:01:44.1]} 25.
Kb1 {[%clk 0:02:15.8]} 25... Qf7 {[%clk 0:00:36.2]} 26. Qxe6 {[%clk 0:01:51.6]}
26... Qxe6 {[%clk 0:00:30.3]} 27. Rxe6 {[%clk 0:01:50.5]} 27... Rxg2 {[%clk
0:00:26.4]} 28. Rxc6 {[%clk 0:01:35.7]} 28... Be3 {[%clk 0:00:22.2]} 29. Rc8+
{[%clk 0:01:32.9]} 29... Kg7 {[%clk 0:00:20.8]} 30. c6 {[%clk 0:01:19.5]} 30...
Bd4 {[%clk 0:00:17.9]} 31. Bxd4 {[%clk 0:01:10]} 31... exd4 {[%clk 0:00:18.8]}
32. c7 {[%clk 0:01:10]} 32... Raa2 {[%clk 0:00:09.7]} 33. Rg8+ {[%clk
0:01:07.9]} 33... Kxg8 {[%clk 0:00:08.5]} 34. c8=Q+ {[%clk 0:01:08.3]} 34... Kg7
{[%clk 0:00:09.2]} 35. Qd7+ {[%clk 0:01:08.2]} 35... Kh6 {[%clk 0:00:07.3]} 36.
Qxd4 {[%clk 0:01:08.2]} 36... Rgd2 {[%clk 0:00:06.9]} 37. Qf6 {[%clk 0:01:01]}
37... Rxh2 {[%clk 0:00:02]} 38. Rxh2+ {[%clk 0:00:59.8]} 38... Rxh2 {[%clk
0:00:02.9]} 39. Qf4+ {[%clk 0:01:00.4]} 1-0

[Event "*** Titled Tuesday Blitz"]
[Site "Chess.com"]
[Date "2020.05.19"]
[Round "2"]
[White "12teen"]
[Black "Tashik"]
[Result "1-0"]
[WhiteElo "2751"]
[BlackElo "2500"]
[TimeControl "180+1"]
[EndTime "12:17:49 PDT"]
[Termination "12teen won by resignation"]

1. e4 {[%clk 0:03:00.9]} 1... e5 {[%clk 0:02:58.9]} 2. Nc3 {[%clk 0:02:58.8]}
2... Bc5 {[%clk 0:02:57.2]} 3. g3 {[%clk 0:02:58.5]} 3... Nf6 {[%clk 0:02:54.9]}
4. Bg2 {[%clk 0:02:58.7]} 4... c6 {[%clk 0:02:53.3]} 5. d3 {[%clk 0:02:58.3]}
5... O-O {[%clk 0:02:49]} 6. f4 {[%clk 0:02:57]} 6... exf4 {[%clk 0:02:44.3]} 7.
d4 {[%clk 0:02:45.8]} 7... Bb4 {[%clk 0:02:39]} 8. gxf4 {[%clk 0:02:45.3]} 8...
Bxc3+ {[%clk 0:02:29.6]} 9. bxc3 {[%clk 0:02:44.1]} 9... Nxe4 {[%clk 0:02:30.2]}
10. Bxe4 {[%clk 0:02:04.6]} 10... Re8 {[%clk 0:02:29.7]} 11. Nf3 {[%clk
0:01:51.3]} 11... Rxe4+ {[%clk 0:02:29.2]} 12. Kf2 {[%clk 0:01:50.8]} 12... d5
{[%clk 0:02:26]} 13. Rg1 {[%clk 0:01:47]} 13... Bf5 {[%clk 0:01:56.6]} 14. Rg5
{[%clk 0:01:33.8]} 14... Qf6 {[%clk 0:01:47.2]} 15. Rb1 {[%clk 0:01:07.4]} 15...
b6 {[%clk 0:01:44.9]} 16. Nh4 {[%clk 0:00:59.8]} 16... Be6 {[%clk 0:01:12.5]}
17. Qh5 {[%clk 0:00:54.5]} 17... Nd7 {[%clk 0:01:05.5]} 18. Bd2 {[%clk
0:00:50.9]} 18... Re8 {[%clk 0:01:03.1]} 19. Rbg1 {[%clk 0:00:47.1]} 19... g6
{[%clk 0:00:53.8]} 20. Nxg6 {[%clk 0:00:47]} 20... fxg6 {[%clk 0:00:51.3]} 21.
Rxg6+ {[%clk 0:00:47.4]} 21... hxg6 {[%clk 0:00:51.7]} 22. Rxg6+ {[%clk
0:00:48.3]} 22... Qxg6 {[%clk 0:00:51.7]} 23. Qxg6+ {[%clk 0:00:48.5]} 23... Kf8
{[%clk 0:00:46]} 24. f5 {[%clk 0:00:45.5]} 24... Re2+ {[%clk 0:00:14.9]} 25. Kf3
{[%clk 0:00:44.4]} 25... Rxd2 {[%clk 0:00:08]} 26. fxe6 {[%clk 0:00:41]} 26...
Re7 {[%clk 0:00:06.2]} 27. exd7 {[%clk 0:00:40.2]} 27... Rxd7 {[%clk 0:00:06.1]}
28. Qh6+ {[%clk 0:00:40.6]} 28... Ke8 {[%clk 0:00:06]} 29. Qxd2 {[%clk
0:00:41.5]} 29... Kd8 {[%clk 0:00:05.4]} 30. h4 {[%clk 0:00:41.6]} 30... Kc7
{[%clk 0:00:05.1]} 31. Kg4 {[%clk 0:00:42]} 31... b5 {[%clk 0:00:04]} 32. h5
{[%clk 0:00:42.3]} 32... Kb6 {[%clk 0:00:04.5]} 33. h6 {[%clk 0:00:42.7]} 1-0

[Event "*** Titled Tuesday Blitz"]
[Site "Chess.com"]
[Date "2020.05.19"]
[Round "2"]
[White "joksijoksi"]
[Black "Stormeman100100"]
[Result "1-0"]
[WhiteElo "2315"]
[BlackElo "2542"]
[TimeControl "180+1"]
[EndTime "12:17:55 PDT"]
[Termination "joksijoksi won by checkmate"]

1. d4 {[%clk 0:03:00.9]} 1... Nf6 {[%clk 0:02:57.4]} 2. c4 {[%clk 0:03:01.2]}
2... g6 {[%clk 0:02:55.7]} 3. Nc3 {[%clk 0:03:01.7]} 3... Bg7 {[%clk 0:02:55.8]}
4. e4 {[%clk 0:03:02.2]} 4... d6 {[%clk 0:02:56]} 5. Nge2 {[%clk 0:03:02.8]}
5... O-O {[%clk 0:02:55]} 6. Ng3 {[%clk 0:03:03.4]} 6... c5 {[%clk 0:02:55.3]}
7. d5 {[%clk 0:03:03.2]} 7... e6 {[%clk 0:02:55.7]} 8. Be2 {[%clk 0:03:03.2]}
8... exd5 {[%clk 0:02:55.1]} 9. exd5 {[%clk 0:03:04.1]} 9... Re8 {[%clk
0:02:54.3]} 10. O-O {[%clk 0:03:02.2]} 10... Nbd7 {[%clk 0:02:54]} 11. Bf4
{[%clk 0:02:57.5]} 11... Ne5 {[%clk 0:02:53.3]} 12. Qd2 {[%clk 0:02:56.4]} 12...
h5 {[%clk 0:02:40.3]} 13. Bg5 {[%clk 0:02:55.6]} 13... Qa5 {[%clk 0:02:26.9]}
14. f4 {[%clk 0:02:50.4]} 14... Neg4 {[%clk 0:02:25.7]} 15. f5 {[%clk
0:02:47.3]} 15... Nh7 {[%clk 0:02:00.8]} 16. Bxg4 {[%clk 0:02:20.1]} 16... hxg4
{[%clk 0:01:58.9]} 17. fxg6 {[%clk 0:02:11.8]} 17... fxg6 {[%clk 0:01:57.3]} 18.
Bh6 {[%clk 0:02:02.7]} 18... Bd4+ {[%clk 0:01:55.6]} 19. Kh1 {[%clk 0:02:02]}
19... Qd8 {[%clk 0:01:54.9]} 20. Qd3 {[%clk 0:01:28.2]} 20... Re7 {[%clk
0:01:34.8]} 21. Qxg6+ {[%clk 0:01:27]} 21... Kh8 {[%clk 0:01:35]} 22. Rae1
{[%clk 0:00:53.9]} 22... Bd7 {[%clk 0:01:27.7]} 23. Rxe7 {[%clk 0:00:48.7]}
23... Qxe7 {[%clk 0:01:26.6]} 24. Rf7 {[%clk 0:00:49.4]} 24... Qxf7 {[%clk
0:00:50]} 25. Qxf7 {[%clk 0:00:50.3]} 25... Re8 {[%clk 0:00:49.4]} 26. Nce4
{[%clk 0:00:35.5]} 26... Ba4 {[%clk 0:00:40.9]} 27. Nf5 {[%clk 0:00:32.8]} 27...
Rg8 {[%clk 0:00:33.3]} 28. Nexd6 {[%clk 0:00:22.4]} 28... Bc2 {[%clk 0:00:22]}
29. Qxg8+ {[%clk 0:00:19.6]} 29... Kxg8 {[%clk 0:00:21.6]} 30. Ne7+ {[%clk
0:00:20.2]} 30... Kh8 {[%clk 0:00:18.1]} 31. Nf7# {[%clk 0:00:20.8]} 1-0

[Event "*** Titled Tuesday Blitz"]
[Site "Chess.com"]
[Date "2020.05.19"]
[Round "2"]
[White "MPGM"]
[Black "CalinGheorghiu"]
[Result "1-0"]
[WhiteElo "2509"]
[BlackElo "2283"]
[TimeControl "180+1"]
[EndTime "12:17:55 PDT"]
[Termination "MPGM won by checkmate"]

1. d4 {[%clk 0:03:00.9]} 1... Nf6 {[%clk 0:02:59.2]} 2. c4 {[%clk 0:02:59]} 2...
e6 {[%clk 0:02:56.8]} 3. Nc3 {[%clk 0:02:57]} 3... Bb4 {[%clk 0:02:55.3]} 4. Bd2
{[%clk 0:02:54.5]} 4... O-O {[%clk 0:02:51.4]} 5. Rc1 {[%clk 0:02:53.5]} 5... d5
{[%clk 0:02:49.1]} 6. e3 {[%clk 0:02:53.2]} 6... c5 {[%clk 0:02:44.8]} 7. cxd5
{[%clk 0:02:52.3]} 7... exd5 {[%clk 0:02:44.5]} 8. Nf3 {[%clk 0:02:51.8]} 8...
Nc6 {[%clk 0:02:43.8]} 9. dxc5 {[%clk 0:02:50.2]} 9... Bxc5 {[%clk 0:02:43.2]}
10. Be2 {[%clk 0:02:47.2]} 10... a6 {[%clk 0:02:40.1]} 11. O-O {[%clk
0:02:46.9]} 11... Bd6 {[%clk 0:02:39.5]} 12. h3 {[%clk 0:02:40.8]} 12... Bc7
{[%clk 0:02:37.6]} 13. Na4 {[%clk 0:02:27.8]} 13... Qd6 {[%clk 0:02:28.6]} 14.
Bc3 {[%clk 0:02:26.1]} 14... Ne4 {[%clk 0:02:22.2]} 15. Bd3 {[%clk 0:01:32.1]}
15... Ng5 {[%clk 0:02:11.3]} 16. Re1 {[%clk 0:01:31.8]} 16... Nxf3+ {[%clk
0:01:32.3]} 17. Qxf3 {[%clk 0:01:32.7]} 17... b5 {[%clk 0:01:31.8]} 18. Nc5
{[%clk 0:01:16]} 18... Qxc5 {[%clk 0:01:23.1]} 19. Bxg7 {[%clk 0:01:15.6]} 19...
Qd6 {[%clk 0:01:22.7]} 20. Bxf8 {[%clk 0:01:13.7]} 20... Kxf8 {[%clk 0:01:23.3]}
21. Qh5 {[%clk 0:00:53.6]} 21... Qh2+ {[%clk 0:00:28]} 22. Kf1 {[%clk
0:00:52.7]} 22... Bb7 {[%clk 0:00:25.7]} 23. Qxh7 {[%clk 0:00:48]} 23... Re8
{[%clk 0:00:21.9]} 24. Bf5 {[%clk 0:00:31.3]} 24... Qh1+ {[%clk 0:00:09.3]} 25.
Ke2 {[%clk 0:00:31.2]} 25... Qxg2 {[%clk 0:00:09.6]} 26. Rxc6 {[%clk 0:00:27.3]}
26... Bxc6 {[%clk 0:00:08.3]} 27. Qh6+ {[%clk 0:00:27.5]} 27... Ke7 {[%clk
0:00:08.8]} 28. Qxc6 {[%clk 0:00:27.6]} 28... Kd8 {[%clk 0:00:09.1]} 29. Qd7#
{[%clk 0:00:27.4]} 1-0

[Event "*** Titled Tuesday Blitz"]
[Site "Chess.com"]
[Date "2020.05.19"]
[Round "2"]
[White "calin_dragomirescu"]
[Black "GM_LOADING"]
[Result "0-1"]
[WhiteElo "2200"]
[BlackElo "2432"]
[TimeControl "180+1"]
[EndTime "12:17:55 PDT"]
[Termination "GM_LOADING won by resignation"]

1. Nf3 {[%clk 0:03:00.9]} 1... Nf6 {[%clk 0:02:57.8]} 2. c4 {[%clk 0:03:00.6]}
2... e6 {[%clk 0:02:58]} 3. g3 {[%clk 0:03:00.2]} 3... a6 {[%clk 0:02:57.9]} 4.
Bg2 {[%clk 0:03:00.5]} 4... b5 {[%clk 0:02:58.3]} 5. b3 {[%clk 0:03:00.9]} 5...
Bb7 {[%clk 0:02:58.2]} 6. O-O {[%clk 0:03:01]} 6... c5 {[%clk 0:02:58.7]} 7. Bb2
{[%clk 0:02:59.2]} 7... Be7 {[%clk 0:02:55.3]} 8. Nc3 {[%clk 0:02:59.4]} 8...
Qb6 {[%clk 0:02:55.3]} 9. d3 {[%clk 0:02:53.7]} 9... O-O {[%clk 0:02:54.5]} 10.
e4 {[%clk 0:02:53.9]} 10... d6 {[%clk 0:02:54.7]} 11. Re1 {[%clk 0:02:53.6]}
11... Nc6 {[%clk 0:02:54.9]} 12. h4 {[%clk 0:02:49.8]} 12... h6 {[%clk
0:02:50.9]} 13. Ne2 {[%clk 0:02:39.9]} 13... Nd7 {[%clk 0:02:48.5]} 14. d4
{[%clk 0:02:36.2]} 14... bxc4 {[%clk 0:02:17]} 15. d5 {[%clk 0:02:35]} 15... Nb4
{[%clk 0:02:04.7]} 16. dxe6 {[%clk 0:02:22]} 16... fxe6 {[%clk 0:02:02.5]} 17.
Nf4 {[%clk 0:02:21.1]} 17... Rxf4 {[%clk 0:01:33.1]} 18. gxf4 {[%clk 0:02:20.7]}
18... Nd3 {[%clk 0:01:33.3]} 19. Re2 {[%clk 0:02:15.2]} 19... Nxf4 {[%clk
0:01:30.1]} 20. Rd2 {[%clk 0:02:11.1]} 20... Nxg2 {[%clk 0:01:21]} 21. Kxg2
{[%clk 0:02:11.2]} 21... Bxe4 {[%clk 0:01:21.3]} 22. Kg1 {[%clk 0:02:08]} 22...
Rf8 {[%clk 0:01:18.2]} 23. Nh2 {[%clk 0:02:00.4]} 23... d5 {[%clk 0:01:02.7]}
24. bxc4 {[%clk 0:01:55.9]} 24... d4 {[%clk 0:01:02.9]} 25. Qe2 {[%clk
0:01:43.7]} 25... Bf5 {[%clk 0:00:54.4]} 26. Re1 {[%clk 0:01:33.4]} 26... Bxh4
{[%clk 0:00:49.5]} 27. Nf3 {[%clk 0:01:29.7]} 27... Bg4 {[%clk 0:00:28.3]} 28.
Qe4 {[%clk 0:01:22.7]} 28... Nf6 {[%clk 0:00:28.2]} 29. Qf4 {[%clk 0:01:13.7]}
29... Bxf3 {[%clk 0:00:19.5]} 30. Qxf3 {[%clk 0:01:13.1]} 30... Bg5 {[%clk
0:00:19.3]} 31. Bc1 {[%clk 0:01:03]} 31... Bxd2 {[%clk 0:00:18.2]} 32. Bxd2
{[%clk 0:01:03.3]} 32... Nd7 {[%clk 0:00:13.7]} 33. Qg4 {[%clk 0:00:59.5]} 33...
Rf6 {[%clk 0:00:11.1]} 34. Bf4 {[%clk 0:00:48]} 34... Nf8 {[%clk 0:00:11.1]} 35.
Be5 {[%clk 0:00:47.2]} 35... Rg6 {[%clk 0:00:11]} 0-1